Cogmind - Beta 17.1 *** ADVENTURER MODE // 2026.09.07 @ 00:57:36 Player: empy the penguin Result: Destroyed self with Subdweller Shrapnel Launcher Performance ------------- Evolutions (0) 0 Regions Visited (3) 600 Robots Destroyed (41) 205 Value Destroyed (1072) 1072 Prototype IDs (0) 0 Alien Tech Used (0) 0 Bonus (-39) -39 TOTAL SCORE: 1838 Bonus ------- Friendly Fire -39 Cogmind --------- Core Integrity 0/250 Matter 92/300 Energy 125/125 System Corruption 0% Temperature Cool (0) Movement Rolling (100) Location -10/Subcaves Parts ------- > --- POWER (1) -------- Light Ion Engine > --- PROPULSION (2) --- Compact Wheel Subdweller Monowheel > --- UTILITY (2) ------ (None) > --- WEAPON (2) ------- Rocket Launcher Subdweller Shrapnel Launcher > --- INVENTORY (5) ---- Ion Engine Light Ion Engine Heat Sink Humpback Peak State ------------ > --- POWER ------------ Light Ion Engine > --- PROPULSION ------- Compact Wheel Subdweller Monowheel > --- UTILITY ---------- Scrap Shield > --- WEAPON ----------- Rocket Launcher Subdweller Shrapnel Launcher > --- INVENTORY -------- Ion Engine Light Ion Engine Heat Sink Large Storage Unit High-capacity Matter Pod [Rating: 12] Favorites ----------- Power Ion Engine Engine Ion Engine Propulsion Compact Wheel Treads Light Treads Wheel Compact Wheel Utility Large Storage Unit Device Sensor Array Storage Large Storage Unit Protection Scrap Shield Weapon Assault Rifle Energy Gun EM Pulse Gun Ballistic Gun Assault Rifle Ballistic Cannon Light Cannon Launcher Rocket Launcher Slashing Weapon Mining Claw Build | -11 -10 -10 -10 ------- Run | Yrd Mat Min Sub Slots Evolved . | . . . . Power . | . . . . Propulsion . | . . . . Utility . | . . . . Weapon . | . . . . Parts Attached 25 | 6 13 1 5 Power 4 | 1 2 . 1 Engine 4 | 1 2 . 1 Core . | . . . . Reactor . | . . . . Propulsion 8 | 2 4 . 2 Treads 2 | 2 . . . Leg . | . . . . Wheel 6 | . 4 . 2 Hover . | . . . . Flight . | . . . . Utility 5 | 1 3 . 1 Device 2 | . 2 . . Storage 2 | 1 1 . . Processor . | . . . . Hackware . | . . . . Protection 1 | . . . 1 Artifact . | . . . . Weapon 8 | 2 4 1 1 Energy Gun 1 | . 1 . . Energy Cannon . | . . . . Ballistic Gun 2 | 2 . . . Ballistic Cannon 1 | . 1 . . Launcher 2 | . . 1 1 Special Weapon . | . . . . Impact Weapon . | . . . . Slashing Weapon 2 | . 2 . . Piercing Weapon . | . . . . Special Melee Weapon . | . . . . Unidentified Prototypes . | . . . . Parts Lost 6 | . 5 . 1 Power 2 | . 2 . . Propulsion 1 | . 1 . . Utility 2 | . 1 . 1 Weapon 1 | . 1 . . Highest Loss Streak 4 | . 4 . 1 To Critical Strikes . | . . . . Average Backups 5 | 1 5 7 4 Power 1 | . . 1 2 Propulsion 1 | . 1 2 . Utility 2 | . 2 4 2 Weapon . | . . . . Tool/Special . | . . . . Unused Backups 8 | . 2 . 6 Power 2 | . 1 . 1 Propulsion . | . . . . Utility 6 | . 1 . 5 Weapon . | . . . . Tool/Special . | . . . . Average Slot Usage (%) 90 | . 92 100 85 Engine 13 | . 13 14 14 Treads 8 | . 15 . . Wheel 19 | . 12 28 28 Device 7 | . 10 14 . Storage 9 | . 14 14 . Protection 4 | . . . 13 Energy Gun 1 | . 1 10 . Ballistic Gun 8 | . 14 . . Ballistic Cannon 3 | . 1 14 4 Launcher 8 | . . 3 23 Slashing Weapon 4 | . 7 . . Peak Build Rating 12 | 6 7 8 12 Average Rating 7 | 4 6 7 11 On Entrance 5 | . 6 7 8 Avg Prop Armor Cover (%) 1 | . . . 1 Naked Turns . | . . . . Heaviest Build 33 | 13 31 33 33 Greatest Support 40 | 40 40 26 36 Greatest Overweight (x) 2 | 1 1 1 2 Average Overweight (x) . | . . 1 . Largest Inventory Capacity 15 | 8 15 15 15 Average Capacity 11 | 7 14 15 5 Most Carried 11 | 3 9 9 11 Average Carried 5 | 1 5 7 5 Final Capacity 15 | 8 15 15 5 Final Carried 9 | 3 7 9 5 Class Distribution -------------------- 78% | Mutant 21% | Subdweller-Mutant Dominant Class ---------------- Mutant | -10/Materials Mutant | -10/Mines Subdweller-Mutant | -10/Subcaves Resources | -11 -10 -10 -10 ----------- Run | Yrd Mat Min Sub Matter Collected 1021 | 222 501 199 99 Remotely . | . . . . Salvage Created 1024 | . 682 190 152 Parts 67 | . 38 14 15 Haulers Intercepted . | . . . . Recyclers Shooed 1 | . 1 . . Parts Field Recycled . | . . . . Retrieved Matter . | . . . . Parts Self-Destructed 9 | . . . 9 Prevented . | . . . . Parts Restored . | . . . . Kills | -11 -10 -10 -10 ------- Run | Yrd Mat Min Sub Combat Hostiles Destroyed 35 | . 15 8 12 Melee 3 | . 3 . . Guns 15 | . 11 4 . Cannons 5 | . 1 3 1 AOE 12 | . . 1 11 Classes Destroyed 6 | . 5 . 1 Worker 3 | . 2 1 . Recycler 1 | . 1 . . Watcher 2 | . 2 . . Swarmer 11 | . 4 6 1 Grunt 13 | . 11 2 . Subdweller 11 | . . . 11 Best Kill Streak 10 | . 4 6 10 Combat Bots Only 10 | . 4 4 10 Max Kills in Single Turn 4 | . 2 2 4 Gunslinging . | . . . . Exploded 4 | . . 1 4 Melee 1 | . 1 . . Uniques/NPCs Destroyed . | . . . . Combat | -11 -10 -10 -10 -------- Run | Yrd Mat Min Sub Hostile Shots Fired 218 | . 166 35 17 Missed 60 | . 44 8 8 Hits 158 | . 122 27 9 Projectile 158 | . 122 27 9 Critical Strikes 3 | . 2 1 . Damage Taken 1410 | . 946 196 268 Core 270 | . 209 25 36 Absorbed by Shields . | . . . . Ignored by Resistances 441 | . 305 67 69 Regen/Repaired (Parts) 85 | . 85 . . Core Remaining (%) 100 | 100 . . . Volleys Fired 111 | . 80 18 13 Largest 2 | . 2 2 1 Hottest 70 | . 70 70 40 Shots Fired 163 | . 114 36 13 Gun 123 | . 105 18 . Cannon 29 | . 9 18 2 Launcher 11 | . . . 11 Special . | . . . . Kinetic 136 | . 105 18 13 Thermal . | . . . . Explosive . | . . . . Electromagnetic 27 | . 9 18 . Robot Hit Streak 14 | . 14 5 7 Robot Miss Streak 5 | . 5 3 1 Penetration Max . | . . . . Secondary Targets 2 | . 2 . . Max Gunslinging Chain 1 | . 1 . . Shots Hit Robots 113 | . 88 18 7 Core Hits 65 | . 33 10 22 Critical Kills . | . . . . Critical Parts Destroyed . | . . . . Critical Strikes . | . . . . Melee Attacks 12 | . 12 . . Impact . | . . . . Slashing 12 | . 12 . . Piercing . | . . . . Sneak Attacks 1 | . 1 . . Combat Hostiles . | . . . . Follow-up Attacks . | . . . . Damage Inflicted 3187 | . 1207 308 1672 Guns 972 | . 856 116 . Cannons 247 | . 90 138 19 Explosions 1707 | . . 54 1653 Melee 261 | . 261 . . Ramming . | . . . . Kinetic 2719 | . 909 138 1672 Thermal 54 | . . 54 . Explosive . | . . . . Electromagnetic 153 | . 37 116 . Impact . | . . . . Slashing 261 | . 261 . . Piercing . | . . . . Highest Corruption . | . . . . Average Corruption . | . . . . Corruption Purged . | . . . . Corruption Blocked . | . . . . Overload Shots . | . . . . Overflow Damage 9 | . 9 . . Projectiles 5 | . 5 . . Explosions . | . . . . Melee 4 | . 4 . . Knockbacks 2 | . . 2 . Impact . | . . . . Kinetic 2 | . . 2 . Secondary . | . . . . Self-Inflicted Damage 163 | . . 39 124 Shots 5 | . . 1 4 Rammed . | . . . . Targets Rammed . | . . . . Kicked . | . . . . Crushed . | . . . . Highest Temperature 64 | . 64 31 . Average Temperature 26 | . 26 24 . Received Heat Transfer 552 | . 495 33 24 Siege Activations . | . . . . Martial Activations . | . . . . Shielding Activations . | . . . . Robots Disrupted . | . . . . Combat Hostiles . | . . . . Robots Corrupted . | . . . . Combat Hostiles . | . . . . Parts Fried . | . . . . Impact Corruptions . | . . . . Robots Melted . | . . . . Combat Hostiles . | . . . . Parts Melted . | . . . . Heat Transferred 50 | . . 50 . Parts Sabotaged . | . . . . Parts Stolen . | . . . . Parts Stripped . | . . . . Power Chain Reactions 1 | . . 1 . Alert | -11 -10 -10 -10 ------- Run | Yrd Mat Min Sub Maximum Alert Level 1 | . . 1 . Low Security (%) 93 | 100 100 47 . Level 1 6 | . . 52 . Level 2 . | . . . . Level 3 . | . . . . Level 4 . | . . . . Level 5 . | . . . . High Security . | . . . . Max Security . | . . . . Peak Influence 243 | . 130 243 . Initial 39 | . . 39 . Average 34 | . 16 183 . Influence Increases 740 | . 476 244 20 Destroy 0b10 Robot/C 480 | . 300 160 20 Destroy 0b10 Robot/NC 30 | . 25 5 . Destroy Leader 94 | . 64 30 . Successful Hack 11 | . 11 . . Destroy Structure 5 | . 1 4 . Lose Combat Pursuer 120 | . 75 45 . Influence Decreases 740 | . 356 171 213 Entered New Map 195 | . . 81 114 Time Decay 505 | . 316 90 99 Lost Part 40 | . 40 . . Squads Dispatched 2 | . 2 . . Investigation 2 | . 2 . . Extermination . | . . . . Reinforcement . | . . . . Assault . | . . . . Garrison . | . . . . Intercept . | . . . . Searches Triggered . | . . . . Construction Impeded . | . . . . Haulers Reinforced . | . . . . Active Scanning Responses . | . . . . Cargo Convoy Interrupts . | . . . . Stealth | -11 -10 -10 -10 --------- Run | Yrd Mat Min Sub Distress Signals 1 | . 1 . . Communications Jammed . | . . . . Distress Signals . | . . . . Times Spotted 56 | . 29 11 16 Peak Tracking Total 12 | . 5 3 12 Tactical Retreats 4 | . 2 2 . Traps | -11 -10 -10 -10 ------- Run | Yrd Mat Min Sub Traps Triggered 2 | . 1 . 1 Indirectly . | . . . . Trap Hack Attempts . | . . . . Triggered . | . . . . Disarmed . | . . . . Reprogrammed . | . . . . Reused . | . . . . Traps Extracted . | . . . . Installed . | . . . . Triggered . | . . . . Machines | -11 -10 -10 -10 ---------- Run | Yrd Mat Min Sub Machines Disabled . | . . . . Max in Single Turn . | . . . . Machines Repaired . | . . . . Machines Dismantled . | . . . . Machines Sabotaged . | . . . . Overloaded Fab Kills . | . . . . Hacking | -11 -10 -10 -10 --------- Run | Yrd Mat Min Sub Machines Accessed 6 | . 6 . . Terminals 5 | . 5 . . Fabricators . | . . . . Repair Stations 1 | . 1 . . Recycling Units . | . . . . Scanalyzers . | . . . . Garrison Access . | . . . . Total Hacks 15 | . 15 . . Successful 6 | . 6 . . Failed 9 | . 9 . . Catastrophic 2 | . 2 . . Database Lockouts . | . . . . Manual 11 | . 11 . . Terminals 13 | . 13 . . Fabricators . | . . . . Repair Stations 2 | . 2 . . Recycling Units . | . . . . Scanalyzers . | . . . . Garrison Access . | . . . . Terminal Hacks 4 | . 4 . . Level Access Points 1 | . 1 . . Branch Access Points 1 | . 1 . . Emergency Access Points 1 | . 1 . . Zone Layout 1 | . 1 . . Fabricator Hacks . | . . . . Repair Station Hacks 2 | . 2 . . Scan Component 1 | . 1 . . Repair 1 | . 1 . . Recycling Unit Hacks . | . . . . Scanalyzer . | . . . . Garrison Access Hacks . | . . . . Unauthorized Hacks . | . . . . Terminals . | . . . . Fabricators . | . . . . Repair Stations . | . . . . Recycling Units . | . . . . Scanalyzers . | . . . . Garrison Access . | . . . . Data Cores Recovered . | . . . . Used . | . . . . Hacking Detections 4 | . 4 . . Full Trace Events 2 | . 2 . . Feedback Events . | . . . . Feedback Blocked . | . . . . Robot Schematics Acquired . | . . . . Robots Built . | . . . . Authchips . | . . . . Time . | . . . . Total Robot Build Rating . | . . . . Part Schematics Acquired . | . . . . Parts Built . | . . . . Authchips . | . . . . Time . | . . . . Total Part Build Rating . | . . . . Part Studies Acquired . | . . . . Parts Repaired 1 | . 1 . . Time 26 | . 26 . . Parts Recycled . | . . . . Recycled Matter . | . . . . Retrieved Matter . | . . . . Retrieved Components . | . . . . Parts Scanalyzed . | . . . . Part Schematics Acquired . | . . . . Parts Damaged . | . . . . Bothacking | -11 -10 -10 -10 ------------ Run | Yrd Mat Min Sub Used RIF Installer . | . . . . Robots Hacked . | . . . . Non-combat . | . . . . Combat . | . . . . Robot Hacks Applied . | . . . . Relay Couplers Released . | . . . . Fabnet Peak Effective % . | . . . . Robots Rewired . | . . . . Allies Hacked . | . . . . Hacks Repelled . | . . . . Allies | -11 -10 -10 -10 -------- Run | Yrd Mat Min Sub Total Allies . | . . . . Largest Group . | . . . . Highest-Rated Group . | . . . . Highest-Rated Ally . | . . . . Total Orders . | . . . . Ally Attacks . | . . . . Total Damage . | . . . . Kills . | . . . . Allies Corrupted . | . . . . Allies Melted . | . . . . Intel | -11 -10 -10 -10 ------- Run | Yrd Mat Min Sub Active Infowar (turns) 608 | . 608 . . Sensors 608 | . 608 . . Robot Analysis Total . | . . . . Derelict Logs Recovered 2 | . . . 2 Drone Launches . | . . . . Drone Recoveries . | . . . . Exploration | -11 -10 -10 -10 ------------- Run | Yrd Mat Min Sub Turns Passed 2271 | 165 1210 190 706 Spaces Moved 1580 | 103 736 123 618 Core 17 | 17 . . . Treads 370 | 86 284 . . Legs . | . . . . Wheels 1193 | . 452 123 618 Hover . | . . . . Flight . | . . . . Fastest Speed 50 | 50 90 105 100 Average Speed 118 | 149 125 105 107 Slowest Speed 160 | 160 160 105 130 Overloaded Moves . | . . . . Propulsion Burnouts . | . . . . Robots Hopped . | . . . . Potential Cave-ins 2 | . . . 2 Cave-ins Triggered . | . . . . Exploration Rate (%) 27 | 5 67 16 22 Regions Visited 3 Branch Regions 2 Pre-discovered Areas . | . . . . Known Exits Taken 1 | . 1 . . Unknown Exits Taken 2 | 1 . 1 . Scrap Searched . | . . . . Spaces Dug . | . . . . Terrain Destroyed 82 | . . 6 76 Melee . | . . . . Projectile . | . . . . AOE 82 | . . 6 76 Terrain Rammed . | . . . . Walls Destroyed . | . . . . Machines Disabled . | . . . . Actions | -11 -10 -10 -10 --------- Run | Yrd Mat Min Sub Total 1810 | 112 897 147 654 Wait 30 | . 26 4 . Move 1577 | 102 735 122 618 Hop . | . . . . Pick Up 20 | 4 13 1 2 Fast Attach 14 | 5 6 1 2 Attach 13 | 1 9 . 3 Detach 13 | . 8 1 4 Swap 1 | . . . 1 Drop 19 | . 8 . 11 Fire 111 | . 80 18 13 Melee 12 | . 12 . . Ram . | . . . . Kick . | . . . . Crush . | . . . . Escape Stasis . | . . . . Rewire . | . . . . Trap . | . . . . Miscellaneous . | . . . . Route ------- -11/Scrapyard -10/Materials (discovered 4 exits: Mat x3 / *Min) -10/Mines (discovered 2 exits: *Mat / [*Sub]) -10/Subcaves History --------- Turn | Location | Event 17 | -11/Scrapyard | Discovered new exit (range 15) 166 | -11/Scrapyard | Entered Materials 311 | -10/Materials | Build established: Mutant 505 | -10/Materials | Repaired Assault Rifle 711 | -10/Materials | Discovered new exit (range 12) 794 | -10/Materials | Core integrity fell below 50% 1026 | -10/Materials | Core integrity fell below 20% 1061 | -10/Materials | Lost 4 parts (1p1n1u1w) 1262 | -10/Materials | Identified exit to Mines 1262 | -10/Materials | Identified exit to Materials 1376 | -10/Materials | Entered Mines 1477 | -10/Mines | Discovered new exit (range 10) 1494 | -10/Mines | Discovered exit to Materials (range 12) 1511 | -10/Mines | Received a Rocket Launcher from a helpful Derelict 1566 | -10/Mines | Entered Subcaves 1567 | -10/Subcaves | Approached by a straggling Scientist 1603 | -10/Subcaves | A swath of the cavern ceiling suddenly collapsed 1620 | -10/Subcaves | Learned Materials emergency access door positions 1956 | -10/Subcaves | Ambushed by swarm of Subdwellers 1987 | -10/Subcaves | Destroyed 10 combat bots 1990 | -10/Subcaves | Lost 4 allies 2089 | -10/Subcaves | Build established: Subdweller-Mutant 2272 | -10/Subcaves | Destroyed self with Subdweller Shrapnel Launcher Last Messages --------------- may cause a cave-in, but only if doing so for extended periods. Tunneling a short distance between rooms is safe unless the area was destabilized by an explosion. 01976_ Acquired 5 matter. 01977_ Acquired 2 matter. 01980_ Acquired 5 matter. 02006_ Acquired 4 matter. 02023_ Subatomizers dissect the Lrg. Storage Unit. 02139_ BR-TGZ(R) destroyed. 02140_ IJ-XRI(R) suffers critical hit (Destroy). 02140_ IJ-XRI(R) destroyed. 02144_ Sub. Monowheel shoots sparks and powers down. 02266_ Triggered Piercing Trap. 02266_ Spikes shoot up from the floor. 02266_ Critical hit (Impale). 02270_ Scrap Shield destroyed. [Achievement: Let's See Who's Tougher] Map ----- +----------------------------------------------------+ | | | | | | | | | | | | | | | | | | | | | | | | | | | ?????????????????????????????????????????????????? | | ?????????????????????????????????????????????????? | | ?????????????????????????????????????????????????? | | ??????????????????????????#######????????????????? | | ???????????????????????###<<< <<#?#??????????????? | | ??????????????????????##<< ?<#??????????????? | | ??????????????????????#< ? ???????????????? | | ?????????????????????##< $$?